[Event "FIDE U16 Olympiad_boards_1-80"]
[Site "Eindhoven, Netherlands"]
[Date "2023.08.13"]
[Round "1.31"]
[White "Bat, Bilguun"]
[Black "Moayad, Anas"]
[Result "1/2-1/2"]
[TimeControl "2700+10"]
[WhiteElo "2220"]
[BlackElo "1757"]

1. d4 {[%clk 00:45:13]} {[%emt 00:00:06]} Nf6 {[%clk 00:45:16]} {[%emt
00:00:04]} 2. Nf3 {[%clk 00:45:19]} {[%emt 00:00:04]} d5 {[%clk 00:45:20]}
{[%emt 00:00:07]} 3. e3 {[%clk 00:45:10]} {[%emt 00:00:19]} c5 {[%clk
00:45:00]} {[%emt 00:00:30]} 4. dxc5 {[%clk 00:45:16]} {[%emt 00:00:04]} Qa5+
{[%clk 00:44:40]} {[%emt 00:00:30]} 5. Nbd2 {[%clk 00:44:11]} {[%emt 00:01:15]}
Qxc5 {[%clk 00:44:46]} {[%emt 00:00:04]} 6. a3 {[%clk 00:44:11]} {[%emt
00:00:10]} Nc6 {[%clk 00:42:33]} {[%emt 00:02:23]} 7. b4 {[%clk 00:43:52]}
{[%emt 00:00:29]} Qc3 {[%clk 00:40:55]} {[%emt 00:01:48]} 8. Rb1 {[%clk
00:43:28]} {[%emt 00:00:34]} Bf5 {[%clk 00:41:00]} {[%emt 00:00:05]} 9. Bb2
{[%clk 00:39:48]} {[%emt 00:03:50]} Qxc2 {[%clk 00:40:17]} {[%emt 00:00:53]} 10.
Qxc2 {[%clk 00:39:51]} {[%emt 00:00:06]} Bxc2 {[%clk 00:40:25]} {[%emt
00:00:03]} 11. Rc1 {[%clk 00:40:00]} {[%emt 00:00:01]} Ba4 {[%clk 00:37:34]}
{[%emt 00:03:01]} 12. Nb1 {[%clk 00:36:20]} {[%emt 00:03:50]} e6 {[%clk
00:33:58]} {[%emt 00:03:45]} 13. Nc3 {[%clk 00:36:15]} {[%emt 00:00:15]} Bb3
{[%clk 00:34:07]} {[%emt 00:00:02]} 14. Nd2 {[%clk 00:36:21]} {[%emt 00:00:04]}
Bc4 {[%clk 00:34:14]} {[%emt 00:00:04]} 15. Nxc4 {[%clk 00:36:26]} {[%emt
00:00:04]} dxc4 {[%clk 00:34:19]} {[%emt 00:00:05]} 16. Bxc4 {[%clk 00:36:33]}
{[%emt 00:00:02]} Be7 {[%clk 00:31:21]} {[%emt 00:03:09]} 17. h3 {[%clk
00:28:55]} {[%emt 00:07:47]} O-O {[%clk 00:29:47]} {[%emt 00:01:44]} 18. g4
{[%clk 00:27:46]} {[%emt 00:01:19]} a5 {[%clk 00:28:38]} {[%emt 00:01:20]} 19.
b5 {[%clk 00:25:49]} {[%emt 00:02:06]} Ne5 {[%clk 00:28:04]} {[%emt 00:00:44]}
20. Be2 {[%clk 00:25:44]} {[%emt 00:00:15]} Rac8 {[%clk 00:27:52]} {[%emt
00:00:22]} 21. Na2 {[%clk 00:23:40]} {[%emt 00:02:15]} Rxc1+ {[%clk 00:25:41]}
{[%emt 00:02:22]} 22. Nxc1 {[%clk 00:23:48]} {[%emt 00:00:01]} Rc8 {[%clk
00:25:49]} {[%emt 00:00:02]} 23. Nb3 {[%clk 00:22:01]} {[%emt 00:01:56]} Nc4
{[%clk 00:25:34]} {[%emt 00:00:26]} 24. Bxc4 {[%clk 00:18:56]} {[%emt
00:03:15]} Rxc4 {[%clk 00:25:42]} {[%emt 00:00:02]} 25. O-O {[%clk 00:17:39]}
{[%emt 00:01:27]} Rc2 {[%clk 00:13:01]} {[%emt 00:12:50]} 26. Bd4 {[%clk
00:17:34]} {[%emt 00:00:15]} a4 {[%clk 00:11:43]} {[%emt 00:01:29]} 27. Na5
{[%clk 00:17:05]} {[%emt 00:00:39]} Bxa3 {[%clk 00:09:11]} {[%emt 00:02:42]} 28.
Ra1 {[%clk 00:13:54]} {[%emt 00:03:21]} Rc1+ {[%clk 00:08:34]} {[%emt
00:00:46]} 29. Rxc1 {[%clk 00:12:48]} {[%emt 00:01:17]} Bxc1 {[%clk 00:08:39]}
{[%emt 00:00:05]} 30. Nxb7 {[%clk 00:12:40]} {[%emt 00:00:18]} a3 {[%clk
00:07:13]} {[%emt 00:01:36]} 31. Nc5 {[%clk 00:12:34]} {[%emt 00:00:15]} Bb2
{[%clk 00:06:46]} {[%emt 00:00:38]} 32. Nb3 {[%clk 00:07:46]} {[%emt 00:04:58]}
Bxd4 {[%clk 00:05:06]} {[%emt 00:01:50]} 33. exd4 {[%clk 00:06:05]} {[%emt
00:01:51]} Nd5 {[%clk 00:04:30]} {[%emt 00:00:46]} 34. Kf1 {[%clk 00:05:15]}
{[%emt 00:01:00]} Kf8 {[%clk 00:04:24]} {[%emt 00:00:15]} 35. Ke1 {[%clk
00:04:51]} {[%emt 00:00:34]} Ke7 {[%clk 00:04:32]} {[%emt 00:00:03]} 36. Kd2
{[%clk 00:04:36]} {[%emt 00:00:24]} Kd6 {[%clk 00:03:41]} {[%emt 00:01:01]} 37.
Kc2 {[%clk 00:04:00]} {[%emt 00:00:46]} Nb4+ {[%clk 00:03:09]} {[%emt
00:00:42]} 38. Kc3 {[%clk 00:03:39]} {[%emt 00:00:32]} Nd5+ {[%clk 00:03:17]}
{[%emt 00:00:01]} 39. Kc2 {[%clk 00:03:25]} {[%emt 00:00:24]} Nb4+ {[%clk
00:03:26]} {[%emt 00:00:02]} 40. Kc3 {[%clk 00:03:27]} {[%emt 00:00:08]} Nd5+
{[%clk 00:03:34]} {[%emt 00:00:05]} 1/2-1/2

[Event "FIDE U16 Olympiad_boards_1-80"]
[Site "Eindhoven, Netherlands"]
[Date "2023.08.13"]
[Round "1.32"]
[White "Elharrak, Ahmed"]
[Black "Patole, Noam"]
[Result "1/2-1/2"]
[TimeControl "2700+10"]
[WhiteElo "1764"]
[BlackElo "1916"]

1. d4 {[%clk 00:45:13]} {[%emt 00:00:07]} Nf6 {[%clk 00:45:17]} {[%emt
00:00:04]} 2. c4 {[%clk 00:45:19]} {[%emt 00:00:04]} g6 {[%clk 00:45:22]}
{[%emt 00:00:04]} 3. Nc3 {[%clk 00:45:24]} {[%emt 00:00:06]} d5 {[%clk
00:45:26]} {[%emt 00:00:06]} 4. Nf3 {[%clk 00:45:26]} {[%emt 00:00:08]} Bg7
{[%clk 00:45:24]} {[%emt 00:00:11]} 5. Bf4 {[%clk 00:41:41]} {[%emt 00:03:56]}
c6 {[%clk 00:43:29]} {[%emt 00:02:04]} 6. e3 {[%clk 00:41:49]} {[%emt
00:00:03]} O-O {[%clk 00:43:33]} {[%emt 00:00:05]} 7. h3 {[%clk 00:41:10]}
{[%emt 00:00:50]} Bd7 {[%clk 00:41:22]} {[%emt 00:02:20]} 8. Be2 {[%clk
00:40:53]} {[%emt 00:00:28]} h6 {[%clk 00:39:12]} {[%emt 00:02:20]} 9. O-O
{[%clk 00:39:45]} {[%emt 00:01:17]} Be6 {[%clk 00:37:58]} {[%emt 00:01:24]} 10.
cxd5 {[%clk 00:37:18]} {[%emt 00:02:38]} Nxd5 {[%clk 00:36:22]} {[%emt
00:01:46]} 11. Nxd5 {[%clk 00:33:59]} {[%emt 00:03:29]} cxd5 {[%clk 00:35:04]}
{[%emt 00:01:27]} 12. Rc1 {[%clk 00:32:35]} {[%emt 00:01:34]} Nc6 {[%clk
00:34:17]} {[%emt 00:00:57]} 13. Qb3 {[%clk 00:31:01]} {[%emt 00:01:44]} Qb6
{[%clk 00:29:34]} {[%emt 00:04:54]} 14. Qxb6 {[%clk 00:28:28]} {[%emt
00:02:42]} axb6 {[%clk 00:29:42]} {[%emt 00:00:02]} 15. a3 {[%clk 00:28:31]}
{[%emt 00:00:08]} Rfc8 {[%clk 00:29:48]} {[%emt 00:00:03]} 16. Nd2 {[%clk
00:23:22]} {[%emt 00:05:19]} f6 {[%clk 00:28:11]} {[%emt 00:01:47]} 17. Bh2
{[%clk 00:19:29]} {[%emt 00:04:04]} Bf7 {[%clk 00:26:59]} {[%emt 00:01:21]} 18.
f4 {[%clk 00:14:00]} {[%emt 00:05:39]} f5 {[%clk 00:23:24]} {[%emt 00:03:45]}
19. Bg3 {[%clk 00:11:32]} {[%emt 00:02:39]} Be8 {[%clk 00:21:28]} {[%emt
00:02:05]} 20. Rfd1 {[%clk 00:09:44]} {[%emt 00:01:58]} Na5 {[%clk 00:17:33]}
{[%emt 00:04:06]} 21. Be1 {[%clk 00:09:08]} {[%emt 00:00:46]} Ba4 {[%clk
00:15:33]} {[%emt 00:02:09]} 22. Rxc8+ {[%clk 00:06:50]} {[%emt 00:02:29]} Rxc8
{[%clk 00:15:40]} {[%emt 00:00:02]} 23. Rb1 {[%clk 00:06:37]} {[%emt 00:00:23]}
Bd7 {[%clk 00:14:59]} {[%emt 00:00:50]} 24. b4 {[%clk 00:06:02]} {[%emt
00:00:47]} Nc4 {[%clk 00:11:18]} {[%emt 00:03:50]} 25. Nxc4 {[%clk 00:04:17]}
{[%emt 00:01:55]} dxc4 {[%clk 00:11:25]} {[%emt 00:00:02]} 26. b5 {[%clk
00:03:39]} {[%emt 00:00:49]} e6 {[%clk 00:07:08]} {[%emt 00:04:27]} 27. Bb4
{[%emt 00:01:20]} Bxb5 {[%clk 00:07:09]} {[%emt 00:00:07]} 28. Bc3 {[%clk
00:02:40]} {[%emt 00:00:02]} Ba6 {[%clk 00:04:33]} {[%emt 00:02:46]} 29. Rxb6
{[%clk 00:02:33]} {[%emt 00:00:17]} Rc6 {[%clk 00:04:41]} {[%emt 00:00:02]} 30.
Rb1 {[%clk 00:02:00]} {[%emt 00:00:42]} Bf8 {[%clk 00:03:36]} {[%emt 00:01:15]}
31. Bf3 {[%clk 00:02:06]} {[%emt 00:00:05]} Rc8 {[%clk 00:03:13]} {[%emt
00:00:31]} 32. a4 {[%clk 00:02:15]} {[%emt 00:00:02]} Rc7 {[%clk 00:03:03]}
{[%emt 00:00:21]} 33. Rb6 {[%clk 00:01:43]} {[%emt 00:00:41]} Kf7 {[%clk
00:02:01]} {[%emt 00:01:12]} 34. Kf2 {[%clk 00:01:35]} {[%emt 00:00:19]} Rd7
{[%clk 00:02:09]} {[%emt 00:00:02]} 35. Ke2 {[%clk 00:01:03]} {[%emt 00:00:42]}
Be7 {[%clk 00:02:17]} {[%emt 00:00:01]} 36. Kd2 {[%clk 00:00:38]} {[%emt
00:00:35]} Bd8 {[%clk 00:02:25]} {[%emt 00:00:02]} 37. Rb1 {[%clk 00:00:31]}
{[%emt 00:00:18]} g5 {[%clk 00:02:18]} {[%emt 00:00:16]} 38. g3 {[%clk
00:00:30]} {[%emt 00:00:12]} Bf6 {[%clk 00:01:19]} {[%emt 00:01:08]} 39. Ba5
{[%clk 00:00:17]} {[%emt 00:00:23]} e5 {[%clk 00:00:49]} {[%emt 00:00:40]} 40.
fxe5 {[%clk 00:00:14]} {[%emt 00:00:14]} Bxe5 {[%clk 00:00:57]} {[%emt
00:00:01]} 41. Kc3 {[%clk 00:00:13]} {[%emt 00:00:11]} Bxg3 {[%clk 00:01:01]}
{[%emt 00:00:06]} 42. e4 {[%clk 00:00:21]} {[%emt 00:00:03]} fxe4 {[%clk
00:00:47]} {[%emt 00:00:24]} 43. Bxe4 {[%clk 00:00:29]} 1/2-1/2

[Event "FIDE U16 Olympiad_boards_1-80"]
[Site "Eindhoven, Netherlands"]
[Date "2023.08.13"]
[Round "1.34"]
[White "Vagman, Roy"]
[Black "He, Matthew"]
[Result "1-0"]
[TimeControl "2700+10"]
[WhiteElo "2190"]
[BlackElo "1839"]

1. e4 {[%clk 00:45:17]} {[%emt 00:00:03]} c6 {[%clk 00:45:18]} {[%emt
00:00:02]} 2. d4 {[%clk 00:45:24]} {[%emt 00:00:02]} d5 {[%clk 00:45:26]}
{[%emt 00:00:03]} 3. e5 {[%clk 00:45:29]} {[%emt 00:00:04]} Bf5 {[%clk
00:45:32]} {[%emt 00:00:04]} 4. c4 {[%clk 00:45:25]} {[%emt 00:00:14]} e6
{[%clk 00:45:38]} {[%emt 00:00:04]} 5. Nc3 {[%clk 00:45:26]} {[%emt 00:00:09]}
Nd7 {[%clk 00:45:16]} {[%emt 00:00:32]} 6. cxd5 {[%clk 00:44:17]} {[%emt
00:01:19]} cxd5 {[%clk 00:43:49]} {[%emt 00:01:38]} 7. h4 {[%clk 00:44:21]}
{[%emt 00:00:06]} h5 {[%clk 00:41:54]} {[%emt 00:02:06]} 8. Bd3 {[%clk
00:44:27]} {[%emt 00:00:04]} Bxd3 {[%clk 00:40:25]} {[%emt 00:01:39]} 9. Qxd3
{[%clk 00:44:35]} {[%emt 00:00:02]} Ne7 {[%clk 00:39:32]} {[%emt 00:01:03]} 10.
Nf3 {[%clk 00:44:42]} {[%emt 00:00:02]} g6 {[%clk 00:36:49]} {[%emt 00:02:53]}
11. Bg5 {[%clk 00:41:30]} {[%emt 00:03:21]} Qb6 {[%clk 00:35:37]} {[%emt
00:01:21]} 12. O-O {[%clk 00:40:28]} {[%emt 00:01:14]} Nf5 {[%clk 00:33:10]}
{[%emt 00:02:37]} 13. b3 {[%clk 00:37:18]} {[%emt 00:03:20]} Be7 {[%clk
00:31:58]} {[%emt 00:01:23]} 14. Bxe7 {[%clk 00:34:59]} {[%emt 00:02:29]} Kxe7
{[%clk 00:30:44]} {[%emt 00:01:24]} 15. Ne2 {[%clk 00:31:56]} {[%emt 00:03:12]}
Rac8 {[%clk 00:27:13]} {[%emt 00:03:41]} 16. Qd2 {[%clk 00:30:44]} {[%emt
00:01:22]} Rc6 {[%clk 00:24:10]} {[%emt 00:03:13]} 17. Ng3 {[%clk 00:29:24]}
{[%emt 00:01:30]} Nh6 {[%clk 00:22:01]} {[%emt 00:02:19]} 18. Rac1 {[%clk
00:28:20]} {[%emt 00:01:14]} Ng4 {[%clk 00:19:59]} {[%emt 00:02:13]} 19. Qf4
{[%clk 00:26:00]} {[%emt 00:02:30]} Kf8 {[%clk 00:16:45]} {[%emt 00:03:23]} 20.
Ng5 {[%clk 00:25:23]} {[%emt 00:00:47]} Nh6 {[%clk 00:16:03]} {[%emt 00:00:53]}
21. Rxc6 {[%clk 00:24:28]} Qxc6 {[%clk 00:16:06]} {[%emt 00:01:10]} 22. Rc1
{[%clk 00:24:35]} {[%emt 00:00:04]} Qa6 {[%clk 00:12:08]} {[%emt 00:04:08]} 23.
Rc7 {[%clk 00:23:00]} {[%emt 00:01:45]} Kg7 {[%clk 00:06:17]} {[%emt 00:06:02]}
24. Rxd7 {[%clk 00:22:45]} {[%emt 00:00:25]} Rf8 {[%clk 00:06:03]} {[%emt
00:00:24]} 25. Qf6+ {[%clk 00:22:32]} {[%emt 00:00:23]} Kg8 {[%clk 00:06:11]}
{[%emt 00:00:03]} 26. Nxh5 {[%clk 00:21:58]} {[%emt 00:00:43]} Nf5 {[%clk
00:04:29]} {[%emt 00:01:53]} 27. Rxf7 {[%clk 00:20:04]} {[%emt 00:02:03]} Qf1+
{[%clk 00:01:27]} {[%emt 00:03:12]} 28. Kxf1 {[%clk 00:20:09]} {[%emt
00:00:05]} Ng3+ {[%clk 00:01:32]} {[%emt 00:00:06]} 29. fxg3 {[%clk 00:20:15]}
{[%emt 00:00:04]} Rxf7 {[%clk 00:00:53]} {[%emt 00:00:48]} 30. Qxf7+ {[%clk
00:20:21]} {[%emt 00:00:04]} 1-0

[Event "FIDE U16 Olympiad_boards_1-80"]
[Site "Eindhoven, Netherlands"]
[Date "2023.08.13"]
[Round "1.35"]
[White "Su, Ethan"]
[Black "Uritsky, Yonathan"]
[Result "0-1"]
[TimeControl "2700+10"]
[WhiteElo "1778"]
[BlackElo "2074"]

1. d4 {[%clk 00:45:15]} {[%emt 00:00:04]} Nf6 {[%clk 00:45:17]} {[%emt
00:00:03]} 2. c4 {[%clk 00:45:23]} {[%emt 00:00:02]} c5 {[%clk 00:45:20]}
{[%emt 00:00:07]} 3. d5 {[%clk 00:45:31]} {[%emt 00:00:03]} b5 {[%clk
00:45:29]} {[%emt 00:00:02]} 4. cxb5 {[%clk 00:45:39]} {[%emt 00:00:02]} a6
{[%clk 00:45:37]} {[%emt 00:00:01]} 5. bxa6 {[%clk 00:45:47]} {[%emt 00:00:02]}
g6 {[%clk 00:45:39]} {[%emt 00:00:06]} 6. g3 {[%clk 00:45:52]} {[%emt
00:00:07]} d6 {[%clk 00:45:31]} {[%emt 00:00:19]} 7. Bg2 {[%clk 00:45:59]}
{[%emt 00:00:03]} Bg7 {[%clk 00:45:36]} {[%emt 00:00:04]} 8. Nf3 {[%clk
00:46:05]} {[%emt 00:00:04]} O-O {[%clk 00:45:29]} {[%emt 00:00:17]} 9. Nc3
{[%clk 00:46:03]} {[%emt 00:00:12]} Nbd7 {[%clk 00:45:21]} {[%emt 00:00:18]} 10.
O-O {[%clk 00:46:02]} {[%emt 00:00:11]} Bxa6 {[%clk 00:44:49]} {[%emt
00:00:43]} 11. Rb1 {[%clk 00:44:35]} {[%emt 00:01:36]} Qa5 {[%clk 00:41:20]}
{[%emt 00:03:37]} 12. Re1 {[%clk 00:42:07]} {[%emt 00:02:39]} Rfb8 {[%clk
00:39:07]} {[%emt 00:02:25]} 13. Nd2 {[%clk 00:34:16]} {[%emt 00:08:00]} Ne5
{[%clk 00:36:41]} {[%emt 00:02:36]} 14. Qc2 {[%clk 00:33:15]} {[%emt 00:01:11]}
Nfd7 {[%clk 00:35:20]} {[%emt 00:01:32]} 15. f4 {[%clk 00:23:15]} {[%emt
00:10:10]} Nc4 {[%clk 00:33:48]} {[%emt 00:01:42]} 16. Nxc4 {[%clk 00:22:35]}
{[%emt 00:00:49]} Bxc4 {[%clk 00:33:56]} {[%emt 00:00:02]} 17. Bd2 {[%clk
00:22:14]} {[%emt 00:00:32]} Bxa2 {[%clk 00:31:52]} {[%emt 00:02:14]} 18. Ra1
{[%clk 00:19:26]} {[%emt 00:02:58]} Bb3 {[%clk 00:30:59]} {[%emt 00:01:03]} 19.
Rxa5 {[%clk 00:19:33]} {[%emt 00:00:03]} Bxc2 {[%clk 00:31:08]} {[%emt
00:00:01]} 20. Rxa8 {[%clk 00:19:30]} {[%emt 00:00:14]} Rxa8 {[%clk 00:31:16]}
{[%emt 00:00:01]} 21. Rc1 {[%clk 00:17:42]} {[%emt 00:01:57]} Bb3 {[%clk
00:31:21]} {[%emt 00:00:04]} 22. e4 {[%clk 00:16:12]} {[%emt 00:01:40]} Nb6
{[%clk 00:29:18]} {[%emt 00:02:14]} 23. Bf1 {[%clk 00:14:20]} {[%emt 00:02:02]}
Bd4+ {[%clk 00:28:28]} {[%emt 00:00:59]} 24. Kg2 {[%clk 00:14:23]} {[%emt
00:00:08]} Nc4 {[%clk 00:23:03]} {[%emt 00:05:35]} 25. Bxc4 {[%clk 00:14:25]}
{[%emt 00:00:08]} Bxc4 {[%clk 00:23:12]} {[%emt 00:00:02]} 26. Nd1 {[%clk
00:04:41]} {[%emt 00:09:54]} Bd3 {[%clk 00:22:53]} {[%emt 00:00:30]} 27. Kf3
{[%clk 00:02:50]} {[%emt 00:02:00]} Ra4 {[%clk 00:23:01]} {[%emt 00:00:02]} 28.
Bc3 {[%clk 00:01:56]} {[%emt 00:01:04]} Bxe4+ {[%clk 00:22:48]} {[%emt
00:00:22]} 29. Kxe4 {[%clk 00:01:40]} {[%emt 00:00:27]} Bxc3+ {[%clk 00:22:56]}
{[%emt 00:00:02]} 30. Kd3 {[%clk 00:01:40]} {[%emt 00:00:11]} Bf6 {[%clk
00:22:52]} {[%emt 00:00:13]} 31. Nc3 {[%clk 00:01:29]} {[%emt 00:00:23]} Ra7
{[%clk 00:20:06]} {[%emt 00:02:55]} 32. g4 {[%clk 00:00:55]} {[%emt 00:00:43]}
Rb7 {[%clk 00:19:21]} {[%emt 00:00:56]} 33. Rc2 {[%clk 00:00:24]} {[%emt
00:00:41]} Rb4 {[%clk 00:19:20]} {[%emt 00:00:10]} 34. Ke3 {[%clk 00:00:31]}
{[%emt 00:00:03]} h6 {[%clk 00:18:29]} {[%emt 00:01:02]} 35. h3 {[%clk
00:00:40]} {[%emt 00:00:01]} Kg7 {[%clk 00:18:25]} {[%emt 00:00:13]} 36. Kf3
{[%clk 00:00:39]} {[%emt 00:00:12]} g5 {[%clk 00:14:57]} {[%emt 00:03:37]} 37.
f5 {[%clk 00:00:31]} {[%emt 00:00:19]} Rf4+ {[%clk 00:14:57]} {[%emt 00:00:09]}
38. Kg3 {[%clk 00:00:31]} {[%emt 00:00:09]} Be5 {[%clk 00:14:20]} {[%emt
00:00:47]} 39. Kg2 {[%clk 00:00:40]} {[%emt 00:00:02]} h5 {[%clk 00:13:53]}
{[%emt 00:00:36]} 40. Rf2 {[%clk 00:00:32]} {[%emt 00:00:18]} hxg4 {[%clk
00:13:16]} {[%emt 00:00:47]} 41. Rxf4 {[%clk 00:00:32]} {[%emt 00:00:11]} gxh3+
{[%clk 00:13:23]} {[%emt 00:00:02]} 42. Kxh3 {[%clk 00:00:39]} {[%emt
00:00:03]} gxf4 {[%clk 00:13:31]} {[%emt 00:00:02]} 43. Kg4 {[%clk 00:00:45]}
{[%emt 00:00:04]} c4 {[%clk 00:12:59]} {[%emt 00:00:43]} 44. Na4 {[%clk
00:00:35]} {[%emt 00:00:20]} Kf6 {[%clk 00:09:36]} {[%emt 00:03:33]} 45. Nb6
{[%clk 00:00:29]} {[%emt 00:00:17]} e6 {[%clk 00:09:32]} {[%emt 00:00:13]} 46.
fxe6 {[%clk 00:00:22]} {[%emt 00:00:16]} fxe6 {[%clk 00:09:41]} {[%emt
00:00:01]} 47. dxe6 {[%clk 00:00:13]} {[%emt 00:00:19]} Kxe6 {[%clk 00:09:24]}
{[%emt 00:00:27]} 48. Nxc4 {[%clk 00:00:16]} {[%emt 00:00:07]} Kd5 {[%clk
00:09:24]} {[%emt 00:00:10]} 49. Nd2 {[%clk 00:00:13]} {[%emt 00:00:13]} Bxb2
{[%clk 00:09:09]} {[%emt 00:00:25]} 50. Nf3 {[%clk 00:00:00]} {[%emt 00:00:12]}
0-1

[Event "FIDE U16 Olympiad_boards_1-80"]
[Site "Eindhoven, Netherlands"]
[Date "2023.08.13"]
[Round "1.36"]
[White "Orian, Noga"]
[Black "Mok, Gillian Xi-Lin"]
[Result "1-0"]
[TimeControl "2700+10"]
[WhiteElo "1866"]
[BlackElo "1314"]

1. d4 {[%clk 00:45:17]} {[%emt 00:00:03]} Nf6 {[%clk 00:45:12]} {[%emt
00:00:09]} 2. c4 {[%clk 00:45:23]} {[%emt 00:00:03]} g6 {[%clk 00:45:18]}
{[%emt 00:00:04]} 3. Nc3 {[%clk 00:45:31]} {[%emt 00:00:03]} Bg7 {[%clk
00:45:25]} {[%emt 00:00:03]} 4. e4 {[%clk 00:45:38]} {[%emt 00:00:03]} d6
{[%clk 00:45:32]} {[%emt 00:00:03]} 5. Be2 {[%clk 00:45:45]} {[%emt 00:00:03]}
O-O {[%clk 00:45:33]} {[%emt 00:00:09]} 6. Be3 {[%clk 00:45:52]} {[%emt
00:00:03]} Nc6 {[%clk 00:45:19]} {[%emt 00:00:23]} 7. d5 {[%clk 00:45:41]}
{[%emt 00:00:22]} Ne5 {[%clk 00:45:15]} {[%emt 00:00:14]} 8. h3 {[%clk
00:45:43]} {[%emt 00:00:08]} c5 {[%clk 00:44:22]} {[%emt 00:01:02]} 9. f4
{[%clk 00:44:06]} {[%emt 00:01:48]} Ned7 {[%clk 00:44:24]} {[%emt 00:00:08]} 10.
g4 {[%clk 00:43:34]} {[%emt 00:00:42]} Qa5 {[%clk 00:40:54]} {[%emt 00:03:39]}
11. Kf2 {[%clk 00:40:08]} {[%emt 00:03:37]} Kh8 {[%clk 00:37:38]} {[%emt
00:03:26]} 12. Nf3 {[%clk 00:38:30]} {[%emt 00:01:47]} Ne8 {[%clk 00:35:31]}
{[%emt 00:02:17]} 13. Qc2 {[%clk 00:34:07]} {[%emt 00:04:34]} Ndf6 {[%clk
00:31:38]} {[%emt 00:04:02]} 14. Rag1 {[%clk 00:30:29]} {[%emt 00:03:48]} e6
{[%clk 00:29:36]} {[%emt 00:02:12]} 15. Ng5 {[%clk 00:24:35]} {[%emt 00:06:05]}
exd5 {[%clk 00:29:01]} {[%emt 00:00:44]} 16. exd5 {[%clk 00:23:59]} {[%emt
00:00:47]} Nc7 {[%clk 00:25:27]} {[%emt 00:03:44]} 17. h4 {[%clk 00:21:30]}
{[%emt 00:02:39]} b5 {[%clk 00:21:32]} {[%emt 00:04:04]} 18. h5 {[%clk
00:20:06]} {[%emt 00:01:34]} Kg8 {[%clk 00:21:31]} {[%emt 00:00:11]} 19. hxg6
{[%clk 00:14:28]} {[%emt 00:05:49]} fxg6 {[%clk 00:19:46]} {[%emt 00:01:55]} 20.
Nxh7 {[%clk 00:11:54]} {[%emt 00:02:43]} Nxh7 {[%clk 00:17:12]} {[%emt
00:02:45]} 21. Qxg6 {[%clk 00:12:02]} {[%emt 00:00:02]} Nf6 {[%clk 00:15:53]}
{[%emt 00:01:28]} 22. g5 {[%clk 00:11:54]} {[%emt 00:00:18]} Nd7 {[%clk
00:15:30]} {[%emt 00:00:34]} 23. Rh7 {[%clk 00:11:17]} {[%emt 00:00:47]} Rf7
{[%clk 00:13:26]} {[%emt 00:02:14]} 24. Rgh1 {[%clk 00:11:09]} {[%emt
00:00:19]} Kf8 {[%clk 00:13:25]} {[%emt 00:00:11]} 25. Rxg7 {[%clk 00:10:53]}
{[%emt 00:00:26]} Ne5 {[%clk 00:12:58]} {[%emt 00:00:37]} 26. Rh8+ {[%clk
00:10:43]} {[%emt 00:00:19]} Ke7 {[%clk 00:12:57]} {[%emt 00:00:11]} 27. Rxf7+
{[%clk 00:10:43]} {[%emt 00:00:11]} Nxf7 {[%clk 00:12:57]} {[%emt 00:00:10]} 28.
Qf6+ {[%clk 00:10:49]} {[%emt 00:00:04]} Kd7 {[%clk 00:12:55]} {[%emt
00:00:12]} 29. Qxf7# {[%clk 00:10:56]} {[%emt 00:00:03]} 1-0